Cogmind - Beta 16.1 @@@ ROGUE MODE // 2026.04.19 @ 01:59:03 Player: ffmpega Result: Destroyed by C-17 Slicer with Blade Saw Performance ------------- Evolutions (3) 1500 Regions Visited (4) 800 Robots Destroyed (12) 60 Value Destroyed (402) 402 Prototype IDs (0) 0 Alien Tech Used (0) 0 Bonus (0) 0 TOTAL SCORE: 2762 Bonus ------- None Cogmind --------- Core Integrity 0/700 Matter 300/300 Energy 100/100 System Corruption 1% Temperature Cool (9) Movement Core (350) Ox6 Location -7/Factory Parts ------- > --- POWER (1) -------- (None) > --- PROPULSION (4) --- (None) > --- UTILITY (4) ------ Large Storage Unit > --- WEAPON (4) ------- (None) > --- INVENTORY (15) --- Ion Engine Ion Engine Aluminum Leg Aluminum Leg Aluminum Leg Aluminum Leg Medium Storage Unit Medium Storage Unit Hacking Suite Datajack Peak State ------------ > --- POWER ------------ Deuterium Engine > --- PROPULSION ------- Aluminum Leg Aluminum Leg Aluminum Leg Aluminum Leg > --- UTILITY ---------- Large Storage Unit Sensor Array Improved Targeting Computer Improved Light Armor Plating > --- WEAPON ----------- Heavy EM Pulse Gun Heavy EM Pulse Gun Medium Laser Beam Rifle > --- INVENTORY -------- Ion Engine Ion Engine Aluminum Leg Aluminum Leg Aluminum Leg Aluminum Leg Medium Storage Unit Medium Storage Unit Hacking Suite Datajack [Rating: 22] Favorites ----------- Power Ion Engine Engine Ion Engine Propulsion Aluminum Leg Leg Aluminum Leg Utility Signal Interpreter Device Sensor Array Storage Large Storage Unit Processor Signal Interpreter Protection Improved Light Armor Plating Weapon Medium Laser Energy Gun Medium Laser Build | -11 -10 -9 -8 -7 ------- Run | Yrd Mat Mat Mat Fac Slots Evolved 6 | . . 2 2 2 Power . | . . . . . Propulsion 2 | . . . 2 . Utility 2 | . . 1 . 1 Weapon 2 | . . 1 . 1 Parts Attached 29 | 6 2 9 4 8 Power 5 | 1 . 3 1 . Engine 5 | 1 . 3 1 . Core . | . . . . . Reactor . | . . . . . Propulsion 9 | 2 . 2 2 3 Treads . | . . . . . Leg 9 | 2 . 2 2 3 Wheel . | . . . . . Hover . | . . . . . Flight . | . . . . . Utility 8 | 1 2 1 1 3 Device 1 | . . 1 . . Storage 3 | 1 1 . 1 . Processor 3 | . 1 . . 2 Hackware . | . . . . . Protection 1 | . . . . 1 Artifact . | . . . . . Weapon 7 | 2 . 3 . 2 Energy Gun 7 | 2 . 3 . 2 Energy Cannon . | . . . . . Ballistic Gun . | . . . . . Ballistic Cannon . | . . . . . Launcher . | . . . . . Special Weapon . | . . . . . Impact Weapon . | . . . . . Slashing Weapon . | . . . . . Piercing Weapon . | . . . . . Special Melee Weapon . | . . . . . Unidentified Prototypes . | . . . . . Parts Lost 4 | . . 1 . 3 Power 1 | . . 1 . . Propulsion . | . . . . . Utility 1 | . . . . 1 Weapon 2 | . . . . 2 Highest Loss Streak 2 | . . 1 . 2 To Critical Strikes . | . . . . . Average Backups 8 | 4 8 9 9 9 Power . | . 1 . 1 2 Propulsion 2 | 2 3 3 1 3 Utility 3 | . 2 3 3 3 Weapon 1 | . 1 1 2 . Tool/Special . | . . . . . Unused Backups 7 | . 2 2 . 3 Power . | . . . . . Propulsion 4 | . 2 2 . . Utility 2 | . . . . 2 Weapon . | . . . . . Tool/Special 1 | . . . . 1 Average Slot Usage (%) 95 | . 92 99 99 74 Engine 9 | . 14 11 9 5 Leg 27 | . 28 22 35 22 Device 8 | . . 10 9 4 Storage 10 | . 14 11 9 7 Processor 9 | . 7 11 9 7 Energy Gun 28 | . 28 32 27 22 Peak Build Rating 22 | 6 8 11 15 22 Average Rating 11 | 5 7 10 13 15 On Entrance 8 | . 6 8 11 15 Avg Prop Armor Cover (%) . | . . . . . Naked Turns . | . . . . . Heaviest Build 44 | 13 18 22 36 44 Greatest Support 40 | 20 20 20 40 40 Greatest Overweight (x) 6 | . . 1 . 6 Average Overweight (x) . | . . . . 1 Largest Inventory Capacity 15 | 8 10 10 15 15 Average Capacity 12 | 7 9 10 14 15 Most Carried 10 | 6 10 10 10 10 Average Carried 9 | 4 9 9 9 9 Final Capacity 15 | 8 10 10 15 15 Final Carried 10 | 6 10 10 10 10 Class Distribution -------------------- 58% | Scavenger-Skirmisher 18% | Mutant 14% | Skirmisher 8% | Scavenger-Gunner Dominant Class ---------------- Mutant | -10/Materials Scavenger-Skirmisher | -9/Materials Scavenger-Skirmisher | -8/Materials Scavenger-Gunner | -7/Factory Resources | -11 -10 -9 -8 -7 ----------- Run | Yrd Mat Mat Mat Fac Matter Collected 458 | 160 108 95 . 95 Remotely . | . . . . . Salvage Created 416 | . 128 195 . 93 Parts 27 | . 12 14 . 1 Haulers Intercepted . | . . . . . Recyclers Shooed . | . . . . . Parts Field Recycled . | . . . . . Retrieved Matter . | . . . . . Parts Self-Destructed . | . . . . . Prevented . | . . . . . Parts Restored . | . . . . . Kills | -11 -10 -9 -8 -7 ------- Run | Yrd Mat Mat Mat Fac Combat Hostiles Destroyed 9 | . 3 4 . 2 Guns 9 | . 3 4 . 2 Classes Destroyed 4 | . 3 1 . . Operator 1 | . 1 . . . Watcher 2 | . 1 1 . . Grunt 7 | . 3 2 . 2 Sentry 2 | . . 2 . . Best Kill Streak 3 | . 3 2 . 2 Combat Bots Only 3 | . 3 2 . 2 Max Kills in Single Turn 2 | . 1 1 . 2 Gunslinging 1 | . . . . 1 Exploded . | . . . . . Melee . | . . . . . Uniques/NPCs Destroyed . | . . . . . Combat | -11 -10 -9 -8 -7 -------- Run | Yrd Mat Mat Mat Fac Hostile Shots Fired 125 | . 9 21 . 95 Missed 32 | . 1 5 . 26 Hits 93 | . 8 16 . 69 Melee 34 | . . . . 34 Projectile 59 | . 8 16 . 35 AOE 1 | . . . . 1 Critical Strikes 17 | . . 1 . 16 Damage Taken 1508 | . 90 216 . 1202 Core 726 | . 11 12 . 703 Absorbed by Shields . | . . . . . Core Remaining (%) 98 | 100 95 97 100 . Volleys Fired 25 | . 11 9 . 5 Largest 4 | . 2 3 . 4 Hottest 191 | . 90 146 . 191 Shots Fired 65 | . 22 27 . 16 Gun 65 | . 22 27 . 16 Cannon . | . . . . . Launcher . | . . . . . Special . | . . . . . Kinetic . | . . . . . Thermal 62 | . 22 27 . 13 Explosive . | . . . . . Electromagnetic 3 | . . . . 3 Robot Hit Streak 6 | . 6 6 . 5 Robot Miss Streak 4 | . 2 3 . 4 Penetration Max . | . . . . . Secondary Targets 3 | . 1 . . 2 Max Gunslinging Chain 2 | . 1 . . 2 Shots Hit Robots 37 | . 14 14 . 9 Core Hits 22 | . 9 9 . 4 Critical Kills . | . . . . . Critical Parts Destroyed . | . . . . . Critical Strikes 1 | . 1 . . . Burn 1 | . 1 . . . Melee Attacks . | . . . . . Impact . | . . . . . Slashing . | . . . . . Piercing . | . . . . . Sneak Attacks . | . . . . . Combat Hostiles . | . . . . . Follow-up Attacks . | . . . . . Damage Inflicted 491 | . 159 182 . 150 Guns 480 | . 159 175 . 146 Cannons . | . . . . . Explosions . | . . . . . Melee . | . . . . . Ramming 11 | . . 7 . 4 Kinetic . | . . . . . Thermal 464 | . 159 175 . 130 Explosive . | . . . . . Electromagnetic 16 | . . . . 16 Impact . | . . . . . Slashing . | . . . . . Piercing . | . . . . . Highest Corruption 1 | . . . . 1 Average Corruption 1 | . . . . 1 Corruption Purged . | . . . . . Corruption Blocked . | . . . . . Overload Shots . | . . . . . Overflow Damage . | . . . . . Projectiles . | . . . . . Explosions . | . . . . . Melee . | . . . . . Knockbacks . | . . . . . Impact . | . . . . . Kinetic . | . . . . . Secondary . | . . . . . Self-Inflicted Damage 1 | . . . . 1 Shots . | . . . . . Rammed 7 | . . . . 7 Targets Rammed 11 | . . 4 . 7 Kicked 4 | . . 4 . . Crushed . | . . . . . Highest Temperature 359 | . 252 220 . 359 Average Temperature 98 | . 95 79 . 136 Received Heat Transfer 450 | . 48 96 . 306 Siege Activations . | . . . . . Martial Activations . | . . . . . Shielding Activations . | . . . . . Robots Disrupted . | . . . . . Combat Hostiles . | . . . . . Robots Corrupted . | . . . . . Combat Hostiles . | . . . . . Parts Fried . | . . . . . Impact Corruptions . | . . . . . Robots Melted . | . . . . . Combat Hostiles . | . . . . . Parts Melted 2 | . . 1 . 1 Heat Transferred 1276 | . 484 446 . 346 Parts Sabotaged . | . . . . . Parts Stolen . | . . . . . Parts Stripped . | . . . . . Power Chain Reactions . | . . . . . Alert | -11 -10 -9 -8 -7 ------- Run | Yrd Mat Mat Mat Fac Maximum Alert Level . | . . . . . Low Security (%) 100 | 100 100 100 100 100 Level 1 . | . . . . . Level 2 . | . . . . . Level 3 . | . . . . . Level 4 . | . . . . . Level 5 . | . . . . . High Security . | . . . . . Max Security . | . . . . . Peak Influence 71 | . 60 71 . 50 Initial 20 | . . 20 . . Average 7 | . 8 14 . 7 Influence Increases 280 | . 82 148 . 50 Destroy 0b10 Robot/C 180 | . 60 80 . 40 Destroy 0b10 Robot/NC 15 | . 10 5 . . Destroy Leader 54 | . 12 32 . 10 Destroy Structure 1 | . . 1 . . Lose Combat Pursuer 30 | . . 30 . . Influence Decreases 280 | . 32 198 . 50 Entered New Map 30 | . . 30 . . Time Decay 230 | . 32 158 . 40 Lost Part 20 | . . 10 . 10 Squads Dispatched 8 | . 1 1 1 5 Investigation 2 | . 1 1 . . Extermination . | . . . . . Reinforcement 5 | . . . 1 4 Assault . | . . . . . Garrison 1 | . . . . 1 Intercept . | . . . . . Searches Triggered . | . . . . . Construction Impeded . | . . . . . Haulers Reinforced . | . . . . . Active Scanning Responses . | . . . . . Cargo Convoy Interrupts . | . . . . . Stealth | -11 -10 -9 -8 -7 --------- Run | Yrd Mat Mat Mat Fac Distress Signals 1 | . . . 1 . Communications Jammed . | . . . . . Distress Signals . | . . . . . Times Spotted 24 | . 5 6 2 11 Peak Tracking Total 7 | . 3 7 1 5 Tactical Retreats 1 | . . 1 . . Traps | -11 -10 -9 -8 -7 ------- Run | Yrd Mat Mat Mat Fac Traps Triggered 2 | . 1 1 . . Indirectly . | . . . . . Trap Hack Attempts . | . . . . . Triggered . | . . . . . Disarmed . | . . . . . Reprogrammed . | . . . . . Reused . | . . . . . Traps Extracted . | . . . . . Installed . | . . . . . Triggered . | . . . . . Machines | -11 -10 -9 -8 -7 ---------- Run | Yrd Mat Mat Mat Fac Machines Disabled . | . . . . . Max in Single Turn . | . . . . . Machines Repaired . | . . . . . Machines Dismantled . | . . . . . Machines Sabotaged . | . . . . . Overloaded Fab Kills . | . . . . . Hacking | -11 -10 -9 -8 -7 --------- Run | Yrd Mat Mat Mat Fac Machines Accessed . | . . . . . Terminals . | . . . . . Fabricators . | . . . . . Repair Stations . | . . . . . Recycling Units . | . . . . . Scanalyzers . | . . . . . Garrison Access . | . . . . . Total Hacks . | . . . . . Successful . | . . . . . Failed . | . . . . . Catastrophic . | . . . . . Database Lockouts . | . . . . . Manual . | . . . . . Terminals . | . . . . . Fabricators . | . . . . . Repair Stations . | . . . . . Recycling Units . | . . . . . Scanalyzers . | . . . . . Garrison Access . | . . . . . Terminal Hacks . | . . . . . Fabricator Hacks . | . . . . . Repair Station Hacks . | . . . . . Recycling Unit Hacks . | . . . . . Scanalyzer . | . . . . . Garrison Access Hacks . | . . . . . Unauthorized Hacks . | . . . . . Terminals . | . . . . . Fabricators . | . . . . . Repair Stations . | . . . . . Recycling Units . | . . . . . Scanalyzers . | . . . . . Garrison Access . | . . . . . Data Cores Recovered 1 | . 1 . . . Used . | . . . . . Hacking Detections . | . . . . . Full Trace Events . | . . . . . Feedback Events . | . . . . . Feedback Blocked . | . . . . . Robot Schematics Acquired . | . . . . . Robots Built . | . . . . . Authchips . | . . . . . Time . | . . . . . Total Robot Build Rating . | . . . . . Part Schematics Acquired . | . . . . . Parts Built . | . . . . . Authchips . | . . . . . Time . | . . . . . Total Part Build Rating . | . . . . . Part Studies Acquired . | . . . . . Parts Repaired . | . . . . . Time . | . . . . . Parts Recycled . | . . . . . Recycled Matter . | . . . . . Retrieved Matter . | . . . . . Retrieved Components . | . . . . . Parts Scanalyzed . | . . . . . Part Schematics Acquired . | . . . . . Parts Damaged . | . . . . . Bothacking | -11 -10 -9 -8 -7 ------------ Run | Yrd Mat Mat Mat Fac Used RIF Installer . | . . . . . Robots Hacked . | . . . . . Non-combat . | . . . . . Combat . | . . . . . Robot Hacks Applied . | . . . . . Relay Couplers Released . | . . . . . Fabnet Peak Effective % . | . . . . . Robots Rewired . | . . . . . Allies Hacked . | . . . . . Hacks Repelled . | . . . . . Allies | -11 -10 -9 -8 -7 -------- Run | Yrd Mat Mat Mat Fac Total Allies . | . . . . . Largest Group . | . . . . . Highest-Rated Group . | . . . . . Highest-Rated Ally . | . . . . . Total Orders . | . . . . . Ally Attacks . | . . . . . Total Damage . | . . . . . Kills . | . . . . . Allies Corrupted . | . . . . . Allies Melted . | . . . . . Intel | -11 -10 -9 -8 -7 ------- Run | Yrd Mat Mat Mat Fac Active Infowar (turns) 1427 | . . 664 622 141 Sensors 1427 | . . 664 622 141 Robot Analysis Total . | . . . . . Derelict Logs Recovered . | . . . . . Drone Launches . | . . . . . Drone Recoveries . | . . . . . Exploration | -11 -10 -9 -8 -7 ------------- Run | Yrd Mat Mat Mat Fac Turns Passed 1751 | 90 164 666 622 209 Spaces Moved 635 | 65 101 246 141 82 Core 9 | 3 . . . 6 Treads . | . . . . . Legs 626 | 62 101 246 141 76 Wheels . | . . . . . Hover . | . . . . . Flight . | . . . . . Fastest Speed 50 | 50 120 120 120 120 Average Speed 150 | 116 120 177 120 188 Slowest Speed 350 | 120 120 190 120 350 Overloaded Moves . | . . . . . Propulsion Burnouts . | . . . . . Robots Hopped . | . . . . . Potential Cave-ins . | . . . . . Cave-ins Triggered . | . . . . . Exploration Rate (%) 12 | 4 19 20 16 5 Regions Visited 4 Branch Regions . Pre-discovered Areas . | . . . . . Known Exits Taken 3 | . 1 1 1 . Unknown Exits Taken 1 | 1 . . . . Scrap Searched . | . . . . . Spaces Dug . | . . . . . Terrain Destroyed . | . . . . . Melee . | . . . . . Projectile . | . . . . . AOE . | . . . . . Terrain Rammed . | . . . . . Walls Destroyed . | . . . . . Machines Disabled . | . . . . . Actions | -11 -10 -9 -8 -7 --------- Run | Yrd Mat Mat Mat Fac Total 1350 | 76 123 454 593 104 Wait 624 | . . 175 448 1 Move 631 | 64 100 245 140 82 Hop . | . . . . . Pick Up 18 | 6 6 5 1 . Fast Attach 9 | 6 2 . . 1 Attach 8 | . . 3 2 3 Detach 1 | . 1 . . . Swap 13 | . . 6 2 5 Drop 10 | . 3 7 . . Fire 25 | . 11 9 . 5 Melee . | . . . . . Ram 7 | . . . . 7 Kick 4 | . . 4 . . Crush . | . . . . . Escape Stasis . | . . . . . Rewire . | . . . . . Trap . | . . . . . Miscellaneous . | . . . . . Route ------- -11/Scrapyard -10/Materials -9/Materials -8/Materials -7/Factory History --------- Turn | Location | Event 10 | -11/Scrapyard | Discovered new exit (range 15) 91 | -11/Scrapyard | Entered Materials 197 | -10/Materials | Discovered new exit (range 15) 251 | -10/Materials | Identified exit to Materials 255 | -10/Materials | Entered another Materials area 255 | -9/Materials | Evolved 2 slots: Utility x1, Weapon x1 825 | -9/Materials | Build established: Scavenger-Skirmisher 913 | -9/Materials | Discovered new exit (range 3) 919 | -9/Materials | Identified exit to Materials 921 | -9/Materials | Entered another Materials area 921 | -8/Materials | Evolved 2 slots: Propulsion x2 1471 | -8/Materials | Met 7R-MNS 1541 | -8/Materials | Discovered new exit (range 3) 1542 | -8/Materials | Identified exit to Factory 1543 | -8/Materials | Entered Factory 1543 | -7/Factory | Evolved 2 slots: Utility x1, Weapon x1 1544 | -7/Factory | Caught up to 7R-MNS 1544 | -7/Factory | Garrison activated, responded to threat 1726 | -7/Factory | Core integrity fell below 50% 1743 | -7/Factory | Core integrity fell below 20% 1752 | -7/Factory | Destroyed by C-17 Slicer with Blade Saw Last Messages --------------- 01708_ ALERT: Hostile activity reported, dispatching reinforcements to area. 01709_ K-01 Serf cleans the Nuclear Reactor. 01710_ R-06 Scavenger collects Aluminum Leg. 01710_ Aluminum Leg severed. 01713_ R-06 Scavenger collects Hvy. EM Pulse Gun. 01713_ R-06 Scavenger collects Aluminum Leg. 01715_ C-17 Slicer destroyed. 01715_ U-05 Engineer works on Matter Pump. 01716_ K-01 Serf collects debris. 01717_ R-06 Scavenger collects Beam Rifle. 01720_ K-01 Serf collects debris. 01721_ U-05 Engineer works on Matter Pump. 01724_ K-01 Serf collects debris. 01728_ Slammed into C-17 Slicer. 01737_ C-17 Slicer destroyed. 01738_ Slammed into G-47 Trooper. 01742_ Slammed into C-17 Slicer. 01749_ Destabilizing: System corrupted (+1). Map ----- +----------------------------------------------------+ | ?????????????????????????????????????????????????? | | ?????????????????????????????????????????????????? | | ?????????????????????????????????????????????????? | | ?????????????????????????????????????????????????? | | ?????????????????????????????????????????????????? | | ?????????????????????????????????????????????????? | | ?????????????????????????????????????????????????? | | ?????????????????????????????????????????????????? | | ?????????????????????????????????????????????????? | | ?????????????????????????????????????????????????? | | ?????????????????????????????????????????????????? | | ?????????????????????????????????????????????????? | | ??????????????????????????#??????????????????????? | | ????????????????????????? ??????????????????????? | | ????????????????????????? ??????????????????????? | | ?????????????????????????" #?????????????????????? | | ?????????????????????????" #?????????????????????? | | ????????????????????# ??"" #?????????????????????? | | ????????????????????# """" #?????????????????????? | | ???????????? ??# #?????????????????????? | | ????????????? ??# """" #?????????????????????? | | ?????????????? ??# """" #?????????????????????? | | ??????????????# ??# """" #?????????????????????? | | ??????????????# ??# """" #?????????????????????? | | ??????????????# #?# g%= #?????????????????????? | | ??????????????# ### !/=@c#?????????????????????? | | ?????? ???????# ##+#g###?????????????????????? | | ??????? ###### *######### #?????????????? | | ??????? + ] =% #?????????????? | | ??????????# [ = #?????????????? | | ??????????# !![ * """ """ #?????????????? | | ??????????# !![ ! """ """ ?????????????? | | ??????????# """ !![ """ """ ???????????????? | | ???######## """ ??????????????? | | ???# """ u *! ?????????????? | | ???# % !! ?????????????? | | ???# """ """ ! ??????????????? | | ???# "" """ ??????????????? | | ???# " " " " ??????????????? | | ???# ###### ??????????????? | | ???# """ """ #?????? ??????????????? | | ???#^ """ """ +?????????????????????? | | ???# """ """ ####?????????????????????? | | ???# #????????????????????????? | | ???# """ """ #????????????????????????? | | ???# """ """ #????????????????????????? | | ???# """ """ #????????????????????????? | | ???# #????????????????????????? | | ???# "" """ ???#????????????????????????? | | #### "F ""??????????????????????????????? | +----------------------------------------------------+ Best States ------------- Heat Dissipation 34 Energy Generation 14 Energy Capacity 275 Matter Stores 300 Matter Capacity 300 Sight Range 16 Robot Scan Range 14 Terrain Scan Density 10 Armor Coverage 150 Evasion (%) 55 Targeting Accuracy 6 Item Schematics ----------------- None Robot Schematics ------------------ None Fabricated ------------ Nothing Repaired ---------- Nothing Studied --------- None Alien Tech Used ----------------- None Achievements -------------- None Challenges ------------ None Game ------ Seed CoreDecoderCleaver Manual? 0 Play Time 00:33:22 Cumulative 13.0 hours Start 2026.04.19 @ 00:19:39 End 2026.04.19 @ 01:59:03 Sessions 1 Manual Loads 0 Difficulty Rogue Special Mode None Game No. 20 Rogue 20 Adventurer 0 Explorer 0 Win Type - Total 0 Types 0/0/0/0/0/0/0/0/0/0 Lore% 2 Gallery% 11 Achievement% 9 Wizard Run 0 Options --------- Layout 2 ASCII 0 Keyboard 1 Movement Vi Keybinds 0 Fullscreen 1 Font 24/Smallcaps Map View 50x44 Zoom Use 0% Tactical HUD 1 Map Filters NONE Filters NONE Steam 1 RUN: 9013266d-7a3b-4f09-8317-55aa61936fd4